[Event "Titled Tuesday Blitz May 25 2021"]
[White "Ozen, Bahadir"]
[Black "AldokhinIvan"]
[WhiteFideId "6337058"]
[WhiteElo "2503"]
[BlackElo "2517"]
[Result "1-0"]
[Round "07"]
[TimeControl "180+1"]
[Date "2021.05.25"]
[WhiteClock "0:00:34"]
[BlackClock "0:00:05"]

1. Nf3 {[%clk 0:03:00]}  Nf6 {[%clk 0:02:59]} 2. g3 {[%clk 0:03:01]}  g6 {[%clk 0:03:00]} 3. Bg2 {[%clk 0:03:01]}  Bg7 {[%clk 0:03:00]} 4. O-O {[%clk 0:03:02]}  O-O {[%clk 0:03:00]} 5. d4 {[%clk 0:03:02]}  d6 {[%clk 0:03:01]} 6. Re1 {[%clk 0:03:01]}  Nc6 {[%clk 0:02:51]} 7. d5 {[%clk 0:02:59]}  Nb4 {[%clk 0:02:43]} 8. e4 {[%clk 0:02:50]}  a5 {[%clk 0:02:31]} 9. a3 {[%clk 0:02:41]}  Na6 {[%clk 0:02:31]} 10. h3 {[%clk 0:02:41]}  e5 {[%clk 0:02:30]} 11. dxe6 {[%clk 0:02:41]}  Bxe6 {[%clk 0:02:30]} 12. Nd4 {[%clk 0:02:40]}  Bd7 {[%clk 0:02:27]} 13. Nc3 {[%clk 0:02:40]}  Re8 {[%clk 0:02:20]} 14. Bf4 {[%clk 0:02:40]}  Nc5 {[%clk 0:02:14]} 15. Qd2 {[%clk 0:02:36]}  Qc8 {[%clk 0:01:49]} 16. Kh2 {[%clk 0:02:35]}  Ne6 {[%clk 0:01:45]} 17. Nxe6 {[%clk 0:02:35]}  Bxe6 {[%clk 0:01:41]} 18. Rad1 {[%clk 0:02:35]}  Nd7 {[%clk 0:01:36]} 19. Bh6 {[%clk 0:02:33]}  Bh8 {[%clk 0:01:28]} 20. f4 {[%clk 0:02:33]}  Nb6 {[%clk 0:01:19]} 21. b3 {[%clk 0:02:28]}  Bd7 {[%clk 0:01:11]} 22. a4 {[%clk 0:02:08]}  Bc6 {[%clk 0:01:10]} 23. Re2 {[%clk 0:01:50]}  Nd7 {[%clk 0:01:10]} 24. Nd5 {[%clk 0:01:47]}  Bxd5 {[%clk 0:00:57]} 25. Qxd5 {[%clk 0:01:48]}  Nf6 {[%clk 0:00:42]} 26. Qc4 {[%clk 0:01:42]}  Ra6 {[%clk 0:00:38]} 27. Qb5 {[%clk 0:01:36]}  Nd7 {[%clk 0:00:17]} 28. Red2 {[%clk 0:01:13]}  Nc5 {[%clk 0:00:15]} 29. e5 {[%clk 0:01:13]}  c6 {[%clk 0:00:06]} 30. Qc4 {[%clk 0:01:13]}  Ne6 {[%clk 0:00:02]} 31. Rxd6 {[%clk 0:01:12]}  Ra8 {[%clk 0:00:02]} 32. h4 {[%clk 0:01:10]}  Ng7 {[%clk 0:00:02]} 33. Bh3 {[%clk 0:01:10]}  Nf5 {[%clk 0:00:02]} 34. R6d3 {[%clk 0:00:59]}  Nxh6 {[%clk 0:00:02]} 35. Bxc8 {[%clk 0:00:59]}  Raxc8 {[%clk 0:00:03]} 36. Rd7 {[%clk 0:00:58]}  Rf8 {[%clk 0:00:03]} 37. Rxb7 {[%clk 0:00:58]}  Nf5 {[%clk 0:00:03]} 38. Rdd7 {[%clk 0:00:56]}  Ne3 {[%clk 0:00:02]} 39. Qc5 {[%clk 0:00:56]}  Nd5 {[%clk 0:00:03]} 40. c4 {[%clk 0:00:47]}  Nb4 {[%clk 0:00:03]} 41. Qxa5 {[%clk 0:00:47]}  Nc2 {[%clk 0:00:03]} 42. Qa7 {[%clk 0:00:47]}  Ne3 {[%clk 0:00:02]} 43. Rxf7 {[%clk 0:00:46]}  Ng4+ {[%clk 0:00:02]} 44. Kh3 {[%clk 0:00:44]}  Rxf7 {[%clk 0:00:02]} 45. Rxf7 {[%clk 0:00:43]}  Nh6 {[%clk 0:00:02]} 46. Rd7 {[%clk 0:00:42]}  Rf8 {[%clk 0:00:03]} 47. Qc7 {[%clk 0:00:40]}  Nf5 {[%clk 0:00:03]} 48. Rd8 {[%clk 0:00:38]}  Bg7 {[%clk 0:00:03]} 49. Rxf8+ {[%clk 0:00:38]}  Bxf8 {[%clk 0:00:03]} 50. Qxc6 {[%clk 0:00:39]}  Ne7 {[%clk 0:00:03]} 51. Qa8 {[%clk 0:00:39]}  Kf7 {[%clk 0:00:03]} 52. a5 {[%clk 0:00:40]}  Nf5 {[%clk 0:00:03]} 53. a6 {[%clk 0:00:41]}  Nd4 {[%clk 0:00:03]} 54. Qb7+ {[%clk 0:00:41]}  Ke6 {[%clk 0:00:03]} 55. a7 {[%clk 0:00:42]}  Kf5 {[%clk 0:00:03]} 56. a8=Q {[%clk 0:00:41]}  h5 {[%clk 0:00:04]} 57. Qxf8+ {[%clk 0:00:40]}  Ke6 {[%clk 0:00:04]} 58. b4 {[%clk 0:00:39]}  Nc6 {[%clk 0:00:04]} 59. b5 {[%clk 0:00:38]}  g5 {[%clk 0:00:04]} 60. hxg5 {[%clk 0:00:38]}  Nd8 {[%clk 0:00:03]} 61. Qxd8 {[%clk 0:00:37]}  Kf5 {[%clk 0:00:03]} 62. b6 {[%clk 0:00:36]}  h4 {[%clk 0:00:04]} 63. Qbd7+ {[%clk 0:00:36]}  Ke4 {[%clk 0:00:04]} 64. b7 {[%clk 0:00:36]}  Kf3 {[%clk 0:00:04]} 65. b8=Q {[%clk 0:00:35]}  hxg3 {[%clk 0:00:04]} 66. Qb3+ {[%clk 0:00:35]}  Kf2 {[%clk 0:00:04]} 67. Qd2+ {[%clk 0:00:35]}  Kf1 {[%clk 0:00:05]} 68. Qbd1# {[%clk 0:00:34]} 1-0


[Site "https://www.chess.com"]

[Event "Titled Tuesday Blitz May 25 2021"]
[White "Ozkan, Ervin"]
[Black "Diaz Camallonga, Carles"]
[WhiteFideId "6306004"]
[BlackFideId "22235256"]
[WhiteElo "2226"]
[BlackElo "2438"]
[Result "0-1"]
[Round "07"]
[TimeControl "180+1"]
[Date "2021.05.25"]
[WhiteClock "0:00:02"]
[BlackClock "0:00:49"]

1. d4 {[%clk 0:03:00]}  e6 {[%clk 0:03:00]} 2. Nf3 {[%clk 0:02:59]}  Nf6 {[%clk 0:03:00]} 3. Bf4 {[%clk 0:02:59]}  c5 {[%clk 0:03:00]} 4. e3 {[%clk 0:02:58]}  Nc6 {[%clk 0:03:01]} 5. Nbd2 {[%clk 0:02:53]}  d5 {[%clk 0:03:01]} 6. c3 {[%clk 0:02:49]}  Bd6 {[%clk 0:03:00]} 7. Bxd6 {[%clk 0:02:47]}  Qxd6 {[%clk 0:03:00]} 8. Bb5 {[%clk 0:02:48]}  O-O {[%clk 0:02:59]} 9. a4 {[%clk 0:02:42]}  a6 {[%clk 0:02:58]} 10. Bxc6 {[%clk 0:02:31]}  bxc6 {[%clk 0:02:59]} 11. Qb3 {[%clk 0:02:30]}  c4 {[%clk 0:02:58]} 12. Qa3 {[%clk 0:02:28]}  Qxa3 {[%clk 0:02:58]} 13. Rxa3 {[%clk 0:02:29]}  Rb8 {[%clk 0:02:52]} 14. Ra2 {[%clk 0:02:09]}  a5 {[%clk 0:02:49]} 15. Kd1 {[%clk 0:02:05]}  c5 {[%clk 0:02:39]} 16. Kc2 {[%clk 0:02:02]}  cxd4 {[%clk 0:02:38]} 17. exd4 {[%clk 0:02:02]}  Bd7 {[%clk 0:02:38]} 18. Ne5 {[%clk 0:02:01]}  Rfc8 {[%clk 0:02:37]} 19. g4 {[%clk 0:01:58]}  Be8 {[%clk 0:02:36]} 20. f4 {[%clk 0:01:55]}  Kf8 {[%clk 0:02:24]} 21. Rf1 {[%clk 0:01:39]}  Ng8 {[%clk 0:02:24]} 22. f5 {[%clk 0:00:56]}  exf5 {[%clk 0:02:23]} 23. gxf5 {[%clk 0:00:56]}  Rb6 {[%clk 0:02:18]} 24. Ng4 {[%clk 0:00:54]}  Nf6 {[%clk 0:02:12]} 25. Ne5 {[%clk 0:00:48]}  Rcb8 {[%clk 0:02:10]} 26. Rb1 {[%clk 0:00:43]}  Nd7 {[%clk 0:02:05]} 27. Ndf3 {[%clk 0:00:37]}  f6 {[%clk 0:02:00]} 28. Ng4 {[%clk 0:00:34]}  Bh5 {[%clk 0:01:57]} 29. h3 {[%clk 0:00:35]}  Re8 {[%clk 0:01:56]} 30. Re1 {[%clk 0:00:30]}  Rxe1 {[%clk 0:01:53]} 31. Nxe1 {[%clk 0:00:31]}  Rb8 {[%clk 0:01:53]} 32. Ng2 {[%clk 0:00:28]}  Nb6 {[%clk 0:01:48]} 33. Nf4 {[%clk 0:00:24]}  Be8 {[%clk 0:01:46]} 34. Ne6+ {[%clk 0:00:23]}  Kg8 {[%clk 0:01:45]} 35. Nc5 {[%clk 0:00:23]}  Bc6 {[%clk 0:01:36]} 36. Ne3 {[%clk 0:00:22]}  Re8 {[%clk 0:01:35]} 37. Kd2 {[%clk 0:00:21]}  Nc8 {[%clk 0:01:33]} 38. b3 {[%clk 0:00:21]}  cxb3 {[%clk 0:01:32]} 39. Nxb3 {[%clk 0:00:22]}  Nb6 {[%clk 0:01:26]} 40. Nxa5 {[%clk 0:00:21]}  Bxa4 {[%clk 0:01:18]} 41. Nxd5 {[%clk 0:00:21]}  Nxd5 {[%clk 0:01:18]} 42. Rxa4 {[%clk 0:00:21]}  Ne3 {[%clk 0:01:19]} 43. Nc4 {[%clk 0:00:17]}  Nxf5 {[%clk 0:01:18]} 44. Kd3 {[%clk 0:00:16]}  h5 {[%clk 0:01:17]} 45. d5 {[%clk 0:00:15]}  Re1 {[%clk 0:01:12]} 46. Ra8+ {[%clk 0:00:12]}  Kf7 {[%clk 0:01:12]} 47. Ra7+ {[%clk 0:00:12]}  Kg6 {[%clk 0:01:12]} 48. Ra2 {[%clk 0:00:11]}  Kg5 {[%clk 0:01:09]} 49. Rg2+ {[%clk 0:00:09]}  Kh4 {[%clk 0:01:09]} 50. Nd2 {[%clk 0:00:08]}  Re3+ {[%clk 0:01:06]} 51. Kc4 {[%clk 0:00:07]}  Kxh3 {[%clk 0:01:05]} 52. Rf2 {[%clk 0:00:08]}  Re5 {[%clk 0:01:04]} 53. Kc5 {[%clk 0:00:06]}  Ne3 {[%clk 0:01:01]} 54. c4 {[%clk 0:00:05]}  Kg3 {[%clk 0:00:59]} 55. Rf3+ {[%clk 0:00:05]}  Kg2 {[%clk 0:00:59]} 56. Kc6 {[%clk 0:00:06]}  h4 {[%clk 0:00:52]} 57. d6 {[%clk 0:00:04]}  Re6 {[%clk 0:00:51]} 58. Kd7 {[%clk 0:00:03]}  Rxd6+ {[%clk 0:00:51]} 59. Kxd6 {[%clk 0:00:03]}  Nxc4+ {[%clk 0:00:52]} 60. Nxc4 {[%clk 0:00:03]}  Kxf3 {[%clk 0:00:52]} 61. Nd2+ {[%clk 0:00:02]}  Kg2 {[%clk 0:00:52]} 62. Kd5 {[%clk 0:00:02]}  h3 {[%clk 0:00:52]} 63. Nc4 {[%clk 0:00:01]}  h2 {[%clk 0:00:51]} 64. Ne3+ {[%clk 0:00:02]}  Kf3 {[%clk 0:00:49]} 0-1


[Site "https://www.chess.com"]

[Event "Titled Tuesday Blitz May 25 2021"]
[White "Pelopidass"]
[Black "Zakhartsov, Vladimir"]
[BlackFideId "4145097"]
[WhiteElo "2531"]
[BlackElo "2462"]
[Result "0-1"]
[Round "07"]
[TimeControl "180+1"]
[Date "2021.05.25"]
[WhiteClock "0:00:05"]
[BlackClock "0:00:07"]

1. e4 {[%clk 0:03:00]}  c5 {[%clk 0:02:59]} 2. b4 {[%clk 0:03:00]}  cxb4 {[%clk 0:02:57]} 3. a3 {[%clk 0:03:01]}  d5 {[%clk 0:02:56]} 4. exd5 {[%clk 0:02:54]}  Qxd5 {[%clk 0:02:56]} 5. Nf3 {[%clk 0:02:54]}  e5 {[%clk 0:02:53]} 6. Bb2 {[%clk 0:02:55]}  Nc6 {[%clk 0:02:52]} 7. c4 {[%clk 0:02:52]}  bxc3 {[%clk 0:02:50]} 8. Nxc3 {[%clk 0:02:51]}  Qd7 {[%clk 0:02:25]} 9. Bb5 {[%clk 0:02:51]}  Bd6 {[%clk 0:02:23]} 10. O-O {[%clk 0:02:38]}  Nge7 {[%clk 0:02:22]} 11. d4 {[%clk 0:02:34]}  exd4 {[%clk 0:02:18]} 12. Ne4 {[%clk 0:02:15]}  O-O {[%clk 0:02:12]} 13. Nxd4 {[%clk 0:02:13]}  Be5 {[%clk 0:01:40]} 14. Nxc6 {[%clk 0:01:46]}  Nxc6 {[%clk 0:01:39]} 15. Qc2 {[%clk 0:01:08]}  Bxb2 {[%clk 0:01:32]} 16. Qxb2 {[%clk 0:01:09]}  Qd4 {[%clk 0:01:31]} 17. Qe2 {[%clk 0:00:44]}  Qe5 {[%clk 0:01:14]} 18. f4 {[%clk 0:00:42]}  Qe7 {[%clk 0:01:06]} 19. Rae1 {[%clk 0:00:34]}  Bf5 {[%clk 0:00:58]} 20. Bxc6 {[%clk 0:00:31]}  bxc6 {[%clk 0:00:58]} 21. Qc4 {[%clk 0:00:29]}  Bxe4 {[%clk 0:00:53]} 22. Rxe4 {[%clk 0:00:28]}  Qxa3 {[%clk 0:00:51]} 23. Qxc6 {[%clk 0:00:28]}  a5 {[%clk 0:00:49]} 24. f5 {[%clk 0:00:27]}  a4 {[%clk 0:00:43]} 25. f6 {[%clk 0:00:26]}  g6 {[%clk 0:00:44]} 26. Qc7 {[%clk 0:00:20]}  Rfc8 {[%clk 0:00:39]} 27. Qf4 {[%clk 0:00:20]}  Qc5+ {[%clk 0:00:36]} 28. Kh1 {[%clk 0:00:19]}  a3 {[%clk 0:00:36]} 29. Qh6 {[%clk 0:00:17]}  Qf8 {[%clk 0:00:35]} 30. Qd2 {[%clk 0:00:15]}  Rd8 {[%clk 0:00:25]} 31. Qa2 {[%clk 0:00:13]}  Qd6 {[%clk 0:00:18]} 32. h3 {[%clk 0:00:03]}  h5 {[%clk 0:00:08]} 33. Re7 {[%clk 0:00:03]}  Rf8 {[%clk 0:00:08]} 34. Rb7 {[%clk 0:00:03]}  Qc6 {[%clk 0:00:06]} 35. Rb3 {[%clk 0:00:03]}  Qd6 {[%clk 0:00:05]} 36. Ra1 {[%clk 0:00:03]}  Qxf6 {[%clk 0:00:04]} 37. Rxa3 {[%clk 0:00:04]}  Rxa3 {[%clk 0:00:04]} 38. Qxa3 {[%clk 0:00:05]}  Kg7 {[%clk 0:00:04]} 39. Rg1 {[%clk 0:00:05]}  h4 {[%clk 0:00:04]} 40. Qe3 {[%clk 0:00:05]}  Rd8 {[%clk 0:00:04]} 41. Re1 {[%clk 0:00:05]}  Rd5 {[%clk 0:00:04]} 42. Qe4 {[%clk 0:00:05]}  Rf5 {[%clk 0:00:04]} 43. Qe3 {[%clk 0:00:04]}  Rf2 {[%clk 0:00:04]} 44. Rg1 {[%clk 0:00:04]}  Rb2 {[%clk 0:00:03]} 45. Qe4 {[%clk 0:00:04]}  Qg5 {[%clk 0:00:02]} 46. Qd4+ {[%clk 0:00:04]}  Qf6 {[%clk 0:00:03]} 47. Qe4 {[%clk 0:00:04]}  Rb5 {[%clk 0:00:02]} 48. Qe3 {[%clk 0:00:04]}  Rf5 {[%clk 0:00:03]} 49. Qe4 {[%clk 0:00:04]}  Rf4 {[%clk 0:00:03]} 50. Qe3 {[%clk 0:00:04]}  g5 {[%clk 0:00:03]} 51. Re1 {[%clk 0:00:04]}  Rf1+ {[%clk 0:00:03]} 52. Rxf1 {[%clk 0:00:04]}  Qxf1+ {[%clk 0:00:04]} 53. Kh2 {[%clk 0:00:05]}  Qf4+ {[%clk 0:00:04]} 54. Qxf4 {[%clk 0:00:05]}  gxf4 {[%clk 0:00:05]} 55. Kg1 {[%clk 0:00:06]}  Kf6 {[%clk 0:00:06]} 56. Kf2 {[%clk 0:00:07]}  Ke5 {[%clk 0:00:06]} 57. Ke2 {[%clk 0:00:06]}  Ke4 {[%clk 0:00:05]} 58. Kf2 {[%clk 0:00:05]}  f6 {[%clk 0:00:05]} 59. Ke2 {[%clk 0:00:04]}  f3+ {[%clk 0:00:05]} 60. gxf3+ {[%clk 0:00:05]}  Kf4 {[%clk 0:00:06]} 61. Kf2 {[%clk 0:00:05]}  f5 {[%clk 0:00:06]} 62. Ke2 {[%clk 0:00:06]}  Kg3 {[%clk 0:00:07]} 63. Ke3 {[%clk 0:00:06]}  Kxh3 {[%clk 0:00:07]} 64. Kf2 {[%clk 0:00:06]}  f4 {[%clk 0:00:06]} 65. Kf1 {[%clk 0:00:04]}  Kg3 {[%clk 0:00:07]} 66. Ke2 {[%clk 0:00:05]}  Kg2 {[%clk 0:00:07]} 0-1


[Site "https://www.chess.com"]

[Event "Titled Tuesday Blitz May 25 2021"]
[White "Reprintsev, Alexander"]
[Black "Rostovtsev, Dmitry"]
[WhiteFideId "14100541"]
[BlackFideId "34278320"]
[WhiteElo "2177"]
[BlackElo "2143"]
[Result "0-1"]
[Round "07"]
[TimeControl "180+1"]
[Date "2021.05.25"]
[WhiteClock "0:00:05"]
[BlackClock "0:00:21"]

1. e4 {[%clk 0:03:00]}  e5 {[%clk 0:02:53]} 2. Bc4 {[%clk 0:02:59]}  Nc6 {[%clk 0:02:51]} 3. d3 {[%clk 0:02:57]}  Nf6 {[%clk 0:02:51]} 4. Nc3 {[%clk 0:02:56]}  Bc5 {[%clk 0:02:50]} 5. h3 {[%clk 0:02:50]}  O-O {[%clk 0:02:35]} 6. Nge2 {[%clk 0:02:49]}  Na5 {[%clk 0:02:34]} 7. O-O {[%clk 0:02:47]}  c6 {[%clk 0:02:29]} 8. Be3 {[%clk 0:02:38]}  Bxe3 {[%clk 0:02:20]} 9. fxe3 {[%clk 0:02:38]}  Nxc4 {[%clk 0:02:20]} 10. dxc4 {[%clk 0:02:36]}  Qb6 {[%clk 0:02:21]} 11. Qd3 {[%clk 0:02:33]}  d6 {[%clk 0:01:24]} 12. b3 {[%clk 0:02:27]}  Be6 {[%clk 0:01:20]} 13. a4 {[%clk 0:02:19]}  Rad8 {[%clk 0:01:14]} 14. Rad1 {[%clk 0:00:07]}  d5 {[%clk 0:01:00]} 15. exd5 {[%clk 0:00:07]}  cxd5 {[%clk 0:01:00]} 16. cxd5 {[%clk 0:00:07]}  Nxd5 {[%clk 0:01:00]} 17. Nxd5 {[%clk 0:00:06]}  Rxd5 {[%clk 0:00:57]} 18. Qc3 {[%clk 0:00:06]}  Rc8 {[%clk 0:00:46]} 19. Qxc8+ {[%clk 0:00:06]}  Bxc8 {[%clk 0:00:45]} 20. Rxd5 {[%clk 0:00:07]}  Qxe3+ {[%clk 0:00:40]} 21. Rf2 {[%clk 0:00:07]}  Qg5 {[%clk 0:00:33]} 22. h4 {[%clk 0:00:06]}  Qe7 {[%clk 0:00:28]} 23. Nc3 {[%clk 0:00:06]}  f6 {[%clk 0:00:26]} 24. Rfd2 {[%clk 0:00:06]}  Be6 {[%clk 0:00:21]} 25. Rd8+ {[%clk 0:00:07]}  Kf7 {[%clk 0:00:22]} 26. Nb5 {[%clk 0:00:07]}  Qc5+ {[%clk 0:00:21]} 27. Kh2 {[%clk 0:00:06]}  Qb4 {[%clk 0:00:20]} 28. c4 {[%clk 0:00:05]}  Qxb3 {[%clk 0:00:19]} 29. Nd6+ {[%clk 0:00:05]}  Kg6 {[%clk 0:00:19]} 30. Ne4 {[%clk 0:00:05]}  Qxc4 {[%clk 0:00:17]} 31. Ng3 {[%clk 0:00:03]}  Qxh4+ {[%clk 0:00:17]} 32. Kg1 {[%clk 0:00:04]}  Qxg3 {[%clk 0:00:18]} 33. R8d3 {[%clk 0:00:04]}  Qg5 {[%clk 0:00:17]} 34. Rc2 {[%clk 0:00:04]}  Bf5 {[%clk 0:00:17]} 35. Rcc3 {[%clk 0:00:04]}  Bxd3 {[%clk 0:00:18]} 36. Rxd3 {[%clk 0:00:04]}  h5 {[%clk 0:00:19]} 37. Kh2 {[%clk 0:00:04]}  h4 {[%clk 0:00:20]} 38. Rf3 {[%clk 0:00:04]}  Qg4 {[%clk 0:00:20]} 39. a5 {[%clk 0:00:04]}  Kg5 {[%clk 0:00:21]} 40. Re3 {[%clk 0:00:05]}  Qf4+ {[%clk 0:00:21]} 0-1


[Site "https://www.chess.com"]

[Event "Titled Tuesday Blitz May 25 2021"]
[White "Senft, Sean"]
[Black "Molina, Roberto Junio Brito"]
[WhiteFideId "2044960"]
[BlackFideId "2109450"]
[WhiteElo "1881"]
[BlackElo "2402"]
[Result "0-1"]
[Round "07"]
[TimeControl "180+1"]
[Date "2021.05.25"]
[WhiteClock "0:00:52"]
[BlackClock "0:01:48"]

1. d4 {[%clk 0:03:00]}  d5 {[%clk 0:02:59]} 2. c4 {[%clk 0:03:01]}  c6 {[%clk 0:02:58]} 3. Nc3 {[%clk 0:03:01]}  Nf6 {[%clk 0:02:57]} 4. Nf3 {[%clk 0:03:01]}  dxc4 {[%clk 0:02:57]} 5. a4 {[%clk 0:03:02]}  Bf5 {[%clk 0:02:56]} 6. Nh4 {[%clk 0:03:03]}  Bd7 {[%clk 0:02:55]} 7. e4 {[%clk 0:03:01]}  e6 {[%clk 0:02:54]} 8. Bxc4 {[%clk 0:03:00]}  Nxe4 {[%clk 0:02:54]} 9. Nxe4 {[%clk 0:02:53]}  Qxh4 {[%clk 0:02:54]} 10. Qf3 {[%clk 0:02:47]}  Bb4+ {[%clk 0:02:47]} 11. Kf1 {[%clk 0:02:42]}  f5 {[%clk 0:02:39]} 12. Ng5 {[%clk 0:01:49]}  Qxd4 {[%clk 0:02:34]} 13. Bxe6 {[%clk 0:01:49]}  Bxe6 {[%clk 0:02:31]} 14. Nxe6 {[%clk 0:01:50]}  Qc4+ {[%clk 0:02:31]} 15. Qe2 {[%clk 0:01:51]}  Qxe2+ {[%clk 0:02:31]} 16. Kxe2 {[%clk 0:01:52]}  Na6 {[%clk 0:02:22]} 17. Nxg7+ {[%clk 0:01:51]}  Kd7 {[%clk 0:02:22]} 18. Nxf5 {[%clk 0:01:51]}  Rae8+ {[%clk 0:02:21]} 19. Be3 {[%clk 0:01:44]}  Rhf8 {[%clk 0:02:22]} 20. Rhd1+ {[%clk 0:01:41]}  Kc8 {[%clk 0:02:21]} 21. Nd6+ {[%clk 0:01:36]}  Bxd6 {[%clk 0:02:20]} 22. Rxd6 {[%clk 0:01:37]}  Nc5 {[%clk 0:02:15]} 23. Kf1 {[%clk 0:01:22]}  Rxe3 {[%clk 0:02:12]} 24. Rh6 {[%clk 0:01:16]}  Nd3 {[%clk 0:02:03]} 25. f3 {[%clk 0:01:12]}  Rfe8 {[%clk 0:02:00]} 26. g3 {[%clk 0:01:03]}  Rxf3+ {[%clk 0:01:58]} 27. Kg2 {[%clk 0:01:02]}  Rf2+ {[%clk 0:01:57]} 28. Kh3 {[%clk 0:01:03]}  Ree2 {[%clk 0:01:55]} 29. Kg4 {[%clk 0:00:59]}  Rxh2 {[%clk 0:01:52]} 30. Rf6 {[%clk 0:00:56]}  Re7 {[%clk 0:01:48]} 31. Rd1 {[%clk 0:00:53]}  Nf2+ {[%clk 0:01:47]} 32. Rxf2 {[%clk 0:00:52]}  Rxf2 {[%clk 0:01:48]} 0-1


[Site "https://www.chess.com"]

[Event "Titled Tuesday Blitz May 25 2021"]
[White "Solon, Nathan"]
[Black "Vaidya, Atulya"]
[WhiteFideId "2017229"]
[BlackFideId "2047713"]
[WhiteElo "2644"]
[BlackElo "2472"]
[Result "0-1"]
[Round "07"]
[TimeControl "180+1"]
[Date "2021.05.25"]
[WhiteClock "0:00:13"]
[BlackClock "0:00:38"]

1. d4 {[%clk 0:03:00]}  Nf6 {[%clk 0:02:58]} 2. c4 {[%clk 0:03:01]}  e6 {[%clk 0:02:58]} 3. g3 {[%clk 0:03:00]}  c5 {[%clk 0:02:56]} 4. d5 {[%clk 0:03:00]}  exd5 {[%clk 0:02:55]} 5. cxd5 {[%clk 0:03:01]}  d6 {[%clk 0:02:55]} 6. Bg2 {[%clk 0:03:02]}  Be7 {[%clk 0:02:55]} 7. Nc3 {[%clk 0:03:02]}  O-O {[%clk 0:02:56]} 8. Nf3 {[%clk 0:03:01]}  a6 {[%clk 0:02:54]} 9. a4 {[%clk 0:03:01]}  a5 {[%clk 0:02:54]} 10. O-O {[%clk 0:03:00]}  Na6 {[%clk 0:02:55]} 11. Bf4 {[%clk 0:02:55]}  Bg4 {[%clk 0:02:54]} 12. Nd2 {[%clk 0:02:50]}  Nb4 {[%clk 0:02:40]} 13. h3 {[%clk 0:02:48]}  Bf5 {[%clk 0:02:37]} 14. e4 {[%clk 0:02:45]}  Bd7 {[%clk 0:02:35]} 15. Nc4 {[%clk 0:02:44]}  Ra6 {[%clk 0:02:31]} 16. Re1 {[%clk 0:02:34]}  Re8 {[%clk 0:02:30]} 17. Qd2 {[%clk 0:02:30]}  h6 {[%clk 0:02:00]} 18. g4 {[%clk 0:02:24]}  Nh7 {[%clk 0:01:58]} 19. Bg3 {[%clk 0:02:10]}  Nf8 {[%clk 0:01:49]} 20. Rad1 {[%clk 0:02:04]}  Ng6 {[%clk 0:01:48]} 21. e5 {[%clk 0:01:45]}  dxe5 {[%clk 0:01:45]} 22. Nxe5 {[%clk 0:01:46]}  Nxe5 {[%clk 0:01:45]} 23. Bxe5 {[%clk 0:01:47]}  Bf6 {[%clk 0:01:39]} 24. f4 {[%clk 0:01:40]}  Bh4 {[%clk 0:01:38]} 25. Bf1 {[%clk 0:01:07]}  Bxe1 {[%clk 0:01:34]} 26. Rxe1 {[%clk 0:01:07]}  Ra8 {[%clk 0:01:32]} 27. Nb5 {[%clk 0:01:02]}  Bxb5 {[%clk 0:01:26]} 28. Bxb5 {[%clk 0:01:03]}  Qxd5 {[%clk 0:01:23]} 29. Qxd5 {[%clk 0:00:49]}  Nxd5 {[%clk 0:01:24]} 30. Bxe8 {[%clk 0:00:49]}  Rxe8 {[%clk 0:01:22]} 31. Rd1 {[%clk 0:00:50]}  Nb4 {[%clk 0:01:07]} 32. Rd7 {[%clk 0:00:49]}  f6 {[%clk 0:01:07]} 33. Bc3 {[%clk 0:00:47]}  Re4 {[%clk 0:01:03]} 34. f5 {[%clk 0:00:39]}  h5 {[%clk 0:00:57]} 35. g5 {[%clk 0:00:37]}  Rf4 {[%clk 0:00:52]} 36. g6 {[%clk 0:00:32]}  Kf8 {[%clk 0:00:51]} 37. Rf7+ {[%clk 0:00:29]}  Ke8 {[%clk 0:00:48]} 38. Rxg7 {[%clk 0:00:25]}  Rxf5 {[%clk 0:00:48]} 39. Rg8+ {[%clk 0:00:22]}  Ke7 {[%clk 0:00:48]} 40. Rg7+ {[%clk 0:00:21]}  Ke8 {[%clk 0:00:48]} 41. Rg8+ {[%clk 0:00:18]}  Ke7 {[%clk 0:00:48]} 42. h4 {[%clk 0:00:17]}  Nd5 {[%clk 0:00:46]} 43. g7 {[%clk 0:00:15]}  Kf7 {[%clk 0:00:46]} 44. Rd8 {[%clk 0:00:15]}  Kxg7 {[%clk 0:00:45]} 45. Rd7+ {[%clk 0:00:14]}  Kg6 {[%clk 0:00:45]} 46. Rxb7 {[%clk 0:00:15]}  Nxc3 {[%clk 0:00:45]} 47. bxc3 {[%clk 0:00:16]}  Rf4 {[%clk 0:00:45]} 48. Rb5 {[%clk 0:00:16]}  Rxa4 {[%clk 0:00:45]} 49. Rxc5 {[%clk 0:00:16]}  Rxh4 {[%clk 0:00:44]} 50. Rxa5 {[%clk 0:00:17]}  Rc4 {[%clk 0:00:44]} 51. Ra3 {[%clk 0:00:16]}  Kg5 {[%clk 0:00:44]} 52. Kg2 {[%clk 0:00:16]}  Kg4 {[%clk 0:00:44]} 53. Rb3 {[%clk 0:00:16]}  f5 {[%clk 0:00:44]} 54. Rb8 {[%clk 0:00:13]}  Rxc3 {[%clk 0:00:43]} 55. Rg8+ {[%clk 0:00:14]}  Kf4 {[%clk 0:00:43]} 56. Rh8 {[%clk 0:00:14]}  Kg4 {[%clk 0:00:40]} 57. Rg8+ {[%clk 0:00:13]}  Kh4 {[%clk 0:00:40]} 58. Rf8 {[%clk 0:00:14]}  Rc5 {[%clk 0:00:40]} 59. Rg8 {[%clk 0:00:13]}  Rc4 {[%clk 0:00:38]} 60. Rf8 {[%clk 0:00:13]}  Rf4 {[%clk 0:00:38]} 61. Rg8 {[%clk 0:00:13]}  Rg4+ {[%clk 0:00:38]} 0-1


[Site "https://www.chess.com"]

[Event "Titled Tuesday Blitz May 25 2021"]
[White "Sorokin, Aleksey"]
[Black "Shapkin, Anatoliy"]
[WhiteFideId "24176460"]
[BlackFideId "34108332"]
[WhiteElo "2476"]
[BlackElo "2223"]
[Result "0-1"]
[Round "07"]
[TimeControl "180+1"]
[Date "2021.05.25"]
[WhiteClock "0:00:13"]
[BlackClock "0:00:24"]

1. d4 {[%clk 0:03:00]}  Nf6 {[%clk 0:03:00]} 2. c4 {[%clk 0:02:59]}  g6 {[%clk 0:03:00]} 3. Nc3 {[%clk 0:02:58]}  d5 {[%clk 0:03:00]} 4. cxd5 {[%clk 0:02:59]}  Nxd5 {[%clk 0:03:01]} 5. e4 {[%clk 0:02:59]}  Nxc3 {[%clk 0:03:02]} 6. bxc3 {[%clk 0:03:00]}  Bg7 {[%clk 0:03:02]} 7. Nf3 {[%clk 0:03:00]}  c5 {[%clk 0:03:03]} 8. Be3 {[%clk 0:03:00]}  Qa5 {[%clk 0:03:03]} 9. Qd2 {[%clk 0:03:00]}  O-O {[%clk 0:03:03]} 10. Rc1 {[%clk 0:02:59]}  Rd8 {[%clk 0:03:04]} 11. d5 {[%clk 0:02:58]}  e6 {[%clk 0:03:04]} 12. Bg5 {[%clk 0:02:58]}  f6 {[%clk 0:03:05]} 13. Be3 {[%clk 0:02:57]}  exd5 {[%clk 0:03:05]} 14. exd5 {[%clk 0:02:50]}  Nc6 {[%clk 0:03:05]} 15. Be2 {[%clk 0:02:41]}  c4 {[%clk 0:03:03]} 16. Bxc4 {[%clk 0:02:26]}  Be6 {[%clk 0:03:03]} 17. Qb2 {[%clk 0:02:23]}  Bxd5 {[%clk 0:03:03]} 18. Bxd5+ {[%clk 0:02:23]}  Qxd5 {[%clk 0:03:04]} 19. Qxb7 {[%clk 0:02:23]}  Rab8 {[%clk 0:02:57]} 20. Qa6 {[%clk 0:02:22]}  Rb2 {[%clk 0:02:56]} 21. O-O {[%clk 0:02:21]}  Rxa2 {[%clk 0:02:49]} 22. Qb7 {[%clk 0:02:21]}  Ne5 {[%clk 0:02:42]} 23. Qb1 {[%clk 0:02:21]}  Nxf3+ {[%clk 0:02:40]} 24. gxf3 {[%clk 0:02:22]}  Rc8 {[%clk 0:02:03]} 25. Rfd1 {[%clk 0:02:05]}  Qf7 {[%clk 0:02:03]} 26. c4 {[%clk 0:01:55]}  Ra6 {[%clk 0:02:03]} 27. Qb5 {[%clk 0:01:48]}  Rac6 {[%clk 0:02:00]} 28. Rd5 {[%clk 0:01:43]}  Bf8 {[%clk 0:01:53]} 29. Rcd1 {[%clk 0:01:33]}  a6 {[%clk 0:01:44]} 30. Qb1 {[%clk 0:01:06]}  Rxc4 {[%clk 0:01:43]} 31. Rd7 {[%clk 0:01:06]}  Qe6 {[%clk 0:01:43]} 32. Qb7 {[%clk 0:01:04]}  Qc6 {[%clk 0:01:19]} 33. Qa7 {[%clk 0:00:51]}  Qxf3 {[%clk 0:01:08]} 34. Qxa6 {[%clk 0:00:36]}  Rg4+ {[%clk 0:00:50]} 35. Kf1 {[%clk 0:00:36]}  Qh1+ {[%clk 0:00:40]} 36. Ke2 {[%clk 0:00:33]}  Rc2+ {[%clk 0:00:40]} 37. R1d2 {[%clk 0:00:20]}  Rxd2+ {[%clk 0:00:38]} 38. Kxd2 {[%clk 0:00:20]}  Bb4+ {[%clk 0:00:32]} 39. Kc2 {[%clk 0:00:19]}  Qe4+ {[%clk 0:00:29]} 40. Kb3 {[%clk 0:00:18]}  Qb1+ {[%clk 0:00:25]} 41. Ka4 {[%clk 0:00:13]}  Bf8+ {[%clk 0:00:24]} 0-1


[Site "https://www.chess.com"]